bitfinex-derivatives/quotes_BTCF0:USTF0_20250907
["timestamp","ask_amount","ask_price","bid_price","bid_amount"]
[1757253537364,0.02125,111290.0,111280.0,0.01385]
[1757253537663,0.33115,111290.0,111280.0,0.03584]
[1757253538559,0.34008744,111290.0,111280.0,0.03584]
[1757253539573,0.41041227,111290.0,111280.0,0.14879908]
[1757253540074,0.41341227,111290.0,111280.0,0.14879908]
[1757253545773,1.49004227,111290.0,111280.0,0.11295908]
[1757253545966,1.49004227,111290.0,111270.0,0.13095264]
[1757253546168,0.0347,111280.0,111270.0,0.15343264]
[1757253546566,0.02151,111280.0,111270.0,0.16648264]
[1757253547777,0.02151,111280.0,111270.0,0.05352356]
[1757253548478,0.02351,111280.0,111270.0,0.05352356]
[1757253552374,0.02351,111280.0,111270.0,0.21484634]
[1757253559780,0.02351,111280.0,111270.0,0.05352356]
[1757253559981,0.02361,111280.0,111270.0,0.05352356]
[1757253560483,0.02361,111280.0,111270.0,0.21484634]
[1757253562286,0.02361,111280.0,111270.0,0.05352356]
[1757253564483,0.02361,111280.0,111270.0,0.21484634]
[1757253565086,0.02361,111280.0,111270.0,0.44484634]
[1757253590499,0.02361,111280.0,111270.0,0.42685278]
[1757253593402,0.02361,111280.0,111270.0,0.49685278]
[1757253597301,0.0021,111280.0,111270.0,0.49685278]
[1757253600702,0.0246,111280.0,111270.0,0.49685278]
[1757253601098,0.0246,111280.0,111270.0,0.19685278]
[1757253616016,0.0266,111280.0,111270.0,0.19685278]
[1757253621319,0.0266,111280.0,111270.0,0.21540224]
[1757253621518,0.0041,111280.0,111270.0,0.21540224]
[1757253622019,0.0263,111280.0,111270.0,0.21540224]
[1757253625716,0.0041,111280.0,111270.0,0.21540224]
[1757253627916,0.0041,111280.0,111270.0,0.30526704]
[1757253628117,0.0041,111280.0,111270.0,0.55526704]
[1757253628418,0.0041,111280.0,111270.0,0.39394426]
[1757253629617,0.0041,111280.0,111270.0,0.40297166]
[1757253630121,0.0041,111280.0,111270.0,0.56421658]
[1757253631821,0.0041,111280.0,111270.0,1.37841658]
[1757253634032,0.0041,111280.0,111270.0,1.21717166]
[1757253634427,0.0041,111280.0,111270.0,1.54717166]
[1757253634632,0.0041,111280.0,111270.0,1.23717166]
[1757253638038,0.0041,111280.0,111270.0,1.21717166]
[1757253638238,0.0041,111280.0,111270.0,1.23717166]
[1757253639338,0.0041,111280.0,111270.0,0.96717166]
[1757253639634,0.0041,111280.0,111270.0,1.32717166]
[1757253639834,0.0041,111280.0,111270.0,1.27717166]
[1757253640230,0.0041,111280.0,111270.0,0.98717166]
[1757253641140,0.0041,111280.0,111270.0,1.28717166]
[1757253641342,0.07042483,111290.0,111280.0,0.0356]
[1757253641643,0.07042483,111290.0,111280.0,0.19664911]
[1757253641644,0.07032483,111290.0,111280.0,0.19664911]
[1757253641835,0.05286022,111300.0,111290.0,0.0356]
[1757253642030,0.38276022,111300.0,111290.0,0.0356]
[1757253642735,0.05276022,111300.0,111290.0,0.0356]
[1757253643540,0.03416086,111300.0,111290.0,0.0356]
[1757253643742,0.03416086,111300.0,111290.0,0.05364229]
[1757253644242,0.10591649,111300.0,111290.0,0.05364229]
[1757253644435,0.03416086,111300.0,111290.0,0.05364229]
[1757253645143,0.03716086,111300.0,111290.0,0.05364229]
[1757253648643,0.10848525,111300.0,111290.0,0.05364229]
[1757253665860,0.12233525,111300.0,111290.0,0.02276]
[1757253666063,0.14233525,111300.0,111290.0,0.02276]
[1757253666461,0.14233525,111300.0,111290.0,0.13561715]
[1757253666962,0.38233525,111300.0,111290.0,0.13561715]
[1757253672766,0.38233525,111300.0,111290.0,0.02276]
[1757253673371,0.38233525,111300.0,111290.0,0.13561429]
[1757253673571,0.38233525,111300.0,111290.0,0.14927429]
[1757253679879,0.38233525,111300.0,111290.0,0.03642]
[1757253689392,0.38233525,111300.0,111290.0,0.02276]
[1757253696100,0.38233525,111300.0,111290.0,0.1839845]
[1757253698500,0.38233525,111300.0,111290.0,0.02276]
[1757253699303,0.38233525,111300.0,111290.0,0.1839845]
[1757253701700,0.38233525,111300.0,111290.0,0.02276]
[1757253702605,0.38233525,111300.0,111290.0,0.1839845]
[1757253705902,0.38233525,111300.0,111290.0,0.02276]
[1757253706602,0.38233525,111300.0,111290.0,0.1839845]
[1757253714707,0.38233525,111300.0,111290.0,0.02276]
[1757253724121,0.40317134,111300.0,111290.0,0.02276]
[1757253725216,0.40317134,111300.0,111290.0,0.1839845]
[1757253725615,0.65317134,111300.0,111290.0,0.1612245]
[1757253726014,0.65317134,111300.0,111280.0,0.13166675]
[1757253726220,0.03666,111290.0,111280.0,0.15362675]
[1757253726412,0.03666,111290.0,111280.0,0.15352675]
[1757253728619,0.03866,111290.0,111280.0,0.15352675]
[1757253732923,0.03866,111290.0,111280.0,0.04058766]
[1757253735826,0.03866,111290.0,111280.0,0.1534156]
[1757253736622,0.03866,111290.0,111280.0,0.04058766]
[1757253738728,0.03866,111290.0,111280.0,0.15340876]
[1757253740331,0.03866,111290.0,111280.0,0.04058766]
[1757253741431,0.03866,111290.0,111280.0,0.15340791]
[1757253742328,0.03866,111290.0,111280.0,0.04058766]
[1757253745738,0.03866,111290.0,111280.0,0.15342704]
[1757253750932,0.03866,111290.0,111280.0,0.04058766]
[1757253758247,0.03866,111290.0,111280.0,0.15358139]
[1757253758742,0.43866,111290.0,111280.0,0.11312857]
[1757253759047,0.59866,111290.0,111280.0,0.11312857]
[1757253759236,0.34866,111290.0,111280.0,0.11312857]
[1757253760848,1.16194,111290.0,111280.0,0.11312857]
[1757253761042,1.16194,111290.0,111280.0,0.00013484]
[1757253770052,0.34866,111290.0,111280.0,0.00013484]
[1757253770349,1.16198,111290.0,111280.0,0.02307484]
[1757253771656,0.34866,111290.0,111280.0,0.02307484]
[1757253771953,1.16214,111290.0,111280.0,0.03610484]
[1757253772154,0.34866,111290.0,111280.0,0.03610484]
[1757253772351,1.1621,111290.0,111280.0,0.03610484]
[1757253772551,0.34866,111290.0,111280.0,0.03610484]
[1757253772752,1.16326,111290.0,111280.0,0.03610484]
[1757253773856,0.34866,111290.0,111280.0,0.03610484]
[1757253774055,1.16318,111290.0,111280.0,0.03610484]
[1757253774355,1.16318,111290.0,111280.0,0.14909857]
[1757253784772,1.16318,111290.0,111280.0,0.13606857]
[1757253786272,0.34866,111290.0,111280.0,0.13606857]
[1757253786475,1.16302,111290.0,111280.0,0.13606857]
[1757253786980,0.34866,111290.0,111280.0,0.13606857]
[1757253787368,1.16294,111290.0,111280.0,0.13606857]
[1757253795981,1.16294,111290.0,111280.0,0.11312857]
[1757253797084,1.16294,111290.0,111280.0,0.13479857]
[1757253799391,1.16294,111290.0,111280.0,0.11312857]
[1757253800788,1.16294,111290.0,111280.0,0.13479857]
[1757253801894,1.16294,111290.0,111280.0,0.11312857]
[1757253802991,1.16294,111290.0,111280.0,0.13479857]
[1757253803594,1.16294,111290.0,111280.0,0.11312857]
[1757253804386,1.41294,111290.0,111280.0,0.11312857]
[1757253804688,1.41294,111290.0,111280.0,0.00013484]
[1757253805089,1.41294,111290.0,111280.0,0.11312857]
[1757253805388,1.41294,111290.0,111280.0,0.00013484]
[1757253811296,1.41294,111290.0,111270.0,0.0001]
[1757253811596,0.036,111280.0,111270.0,0.0001]
[1757253811796,0.036,111270.0,111260.0,0.13476373]
[1757253812095,0.85272,111270.0,111260.0,0.13466373]
[1757253814100,0.85272,111270.0,111260.0,0.13458373]
[1757253814998,0.85272,111270.0,111260.0,0.11291373]
[1757253816199,1.19272,111270.0,111260.0,0.11291373]
[1757253821601,0.376,111270.0,111260.0,0.11291373]
[1757253821805,1.193,111270.0,111260.0,0.13595373]
[1757253822004,0.92328,111270.0,111260.0,0.14976373]
[1757253822205,1.20976,111270.0,111260.0,0.28685]
[1757253824110,1.22332,111270.0,111260.0,0.28685]
[1757253825806,1.22332,111270.0,111260.0,0.39974813]
[1757253829413,1.22332,111270.0,111260.0,0.28685]
[1757253830315,1.22332,111270.0,111260.0,0.39981185]
[1757253833722,1.22332,111270.0,111260.0,0.28685]
[1757253841028,0.40604,111270.0,111260.0,0.28685]
[1757253841218,1.23292,111270.0,111260.0,0.28685]
[1757253844024,0.41604,111270.0,111260.0,0.28685]
[1757253844220,1.1568,111270.0,111260.0,0.28685]
[1757253844521,0.02248,111270.0,111260.0,0.28685]
[1757253845023,0.05719665,111270.0,111260.0,0.02304]
[1757253848427,0.47299665,111270.0,111260.0,0.02304]
[1757253850130,0.05719665,111270.0,111260.0,0.02304]
[1757253854428,0.03645,111260.0,111250.0,0.2008153]
[1757253854628,0.03645,111260.0,111250.0,0.2007153]
[1757253855934,0.03645,111260.0,111250.0,0.15246214]
[1757253856232,0.03645,111260.0,111250.0,0.15346214]
[1757253857936,0.03645,111260.0,111250.0,0.15446214]
[1757253858235,0.03645,111260.0,111250.0,0.0414908]
[1757253859035,0.03645,111260.0,111250.0,0.0414508]
[1757253861439,0.03645,111260.0,111250.0,0.15438957]
[1757253862238,0.28645,111260.0,111250.0,0.11493877]
[1757253862933,1.20613,111260.0,111250.0,0.11493877]
[1757253863334,1.20613,111260.0,111250.0,0.002]
[1757253863838,0.01373,111250.0,111240.0,0.11303877]
[1757253864039,0.03645,111250.0,111240.0,0.11293877]
[1757253864428,0.28645,111250.0,111240.0,0.11293877]
[1757253865339,0.64645,111250.0,111240.0,0.11293877]
[1757253865643,0.64645,111250.0,111240.0,0.11393877]
[1757253866342,1.46333,111250.0,111240.0,0.11593877]
[1757253866544,1.46333,111250.0,111240.0,0.003]
[1757253867040,1.46329,111250.0,111240.0,0.003]
[1757253869250,1.46369,111250.0,111240.0,0.003]
[1757253870446,1.46373,111250.0,111240.0,0.02432]
[1757253870649,1.24373,111250.0,111240.0,0.02432]
[1757253870850,1.24365,111250.0,111240.0,0.02432]
[1757253871446,1.24365,111250.0,111240.0,0.003]
[1757253872152,1.24365,111250.0,111240.0,0.02432]
[1757253872647,0.42645,111250.0,111240.0,0.02432]
[1757253872846,1.11097,111250.0,111240.0,0.02432]
[1757253873056,1.11097,111250.0,111240.0,0.003]
[1757253876455,0.42645,111250.0,111240.0,0.003]
[1757253876657,1.24369,111250.0,111240.0,0.003]
[1757253879254,0.99369,111250.0,111240.0,0.003]
[1757253882555,0.17645,111250.0,111240.0,0.02529]
[1757253882756,0.99325,111250.0,111240.0,0.02529]
[1757253882957,0.85325,111250.0,111240.0,0.13822877]
[1757253893755,0.03645,111250.0,111240.0,0.15100877]
[1757253893959,0.83936,111250.0,111240.0,0.03807]
[1757253895360,0.83936,111250.0,111240.0,0.15113918]
[1757253897864,0.83936,111250.0,111240.0,0.03807]
[1757253898862,0.02305,111260.0,111250.0,0.03507]
[1757253899068,0.02118665,111270.0,111260.0,0.03507]
[1757253899255,0.02098665,111270.0,111260.0,0.03507]
[1757253899454,0.02098665,111270.0,111260.0,0.28507]
[1757253899660,0.02098665,111270.0,111260.0,0.39812381]
[1757253899860,0.02098665,111270.0,111260.0,0.48799641]
[1757253900856,0.00459463,111270.0,111260.0,0.48799641]
[1757253901064,0.00459463,111270.0,111260.0,0.3749426]
[1757253901264,0.00459463,111270.0,111260.0,0.53597859]
[1757253902659,0.00559463,111270.0,111260.0,0.53597859]
[1757253902872,0.00659463,111270.0,111260.0,0.3749426]
[1757253909673,0.00659463,111270.0,111260.0,0.48735756]
[1757253919080,0.0002,111280.0,111270.0,0.01384]
[1757253919286,0.0001,111290.0,111280.0,0.1249367]
[1757253919488,0.0001,111300.0,111290.0,0.1249282]
[1757253919785,0.09131833,111310.0,111300.0,0.03508]
[1757253919988,0.36105,111310.0,111300.0,0.03508]
[1757253920176,0.37026041,111310.0,111300.0,0.11535067]
[1757253920380,0.37026041,111310.0,111300.0,0.03508]
[1757253920982,0.37026041,111310.0,111300.0,0.11535067]
[1757253921183,0.37026041,111310.0,111300.0,0.05308373]
[1757253922982,0.37426041,111310.0,111300.0,0.05308373]
[1757253924089,0.4460527,111310.0,111300.0,0.05308373]
[1757253928190,0.4460527,111310.0,111300.0,0.1333544]
[1757253936494,0.4460527,111310.0,111300.0,0.05308373]
[1757253944202,0.4460527,111310.0,111300.0,0.1333544]
[1757253944809,0.4460527,111310.0,111300.0,0.05308373]
[1757253946303,0.4460527,111310.0,111300.0,0.1333544]
[1757253947714,0.7091627,111310.0,111300.0,0.1333544]
[1757253947901,0.6960527,111310.0,111300.0,0.1333544]
[1757253948107,0.68684229,111310.0,111300.0,0.1333544]
[1757253948416,0.43684229,111310.0,111300.0,0.1333544]
[1757253948710,0.43684229,111310.0,111300.0,0.05308373]
[1757253949214,0.43684229,111310.0,111300.0,0.16549869]
[1757253954114,0.43684229,111310.0,111300.0,0.05308373]
[1757253959319,0.43684229,111310.0,111300.0,0.21411972]
[1757253962317,0.44954229,111310.0,111300.0,0.03924373]
[1757253964823,0.44954229,111310.0,111300.0,0.20027972]
[1757253965818,0.44954229,111310.0,111300.0,0.3131695]
[1757253966424,0.44954229,111310.0,111300.0,0.15213351]
[1757253967023,0.44954229,111310.0,111300.0,0.03924373]
[1757253967922,0.43684229,111310.0,111300.0,0.05249373]
[1757253969427,0.43684229,111310.0,111300.0,0.16538351]
[1757253970630,0.44954229,111310.0,111300.0,0.16538351]
[1757253973631,0.44954229,111310.0,111300.0,0.3264195]
[1757253973832,0.44954229,111310.0,111300.0,0.21352972]
[1757253982733,0.43684229,111310.0,111300.0,0.21352972]
[1757253984931,0.43684229,111310.0,111300.0,0.05249373]
[1757253985833,0.43684229,111310.0,111300.0,0.21352972]
[1757253988041,0.004,111310.0,111300.0,0.55337022]
[1757253988437,0.00073937,111310.0,111300.0,0.55337022]
[1757253988838,0.02188937,111310.0,111300.0,0.55337022]
[1757253989146,0.02188937,111310.0,111300.0,0.39233423]
[1757253989742,0.00073937,111310.0,111300.0,0.39233423]
[1757253995949,0.02286937,111310.0,111300.0,0.30249373]
[1757253999248,0.02286937,111310.0,111300.0,0.05249373]
[1757253999843,0.00408044,111310.0,111300.0,0.05249373]
[1757254000048,0.00408044,111310.0,111300.0,0.21343965]
[1757254001654,0.00408044,111310.0,111300.0,0.05249373]
[1757254003456,0.00408044,111310.0,111300.0,0.16512115]
[1757254008962,0.00074515,111310.0,111300.0,0.16512115]
[1757254009259,0.00074515,111310.0,111300.0,0.05249373]
[1757254015461,0.10530772,111320.0,111310.0,0.03584]
[1757254015660,0.45510772,111320.0,111310.0,0.19690607]
[1757254016769,0.45610772,111320.0,111310.0,0.19690607]
[1757254016958,0.30836506,111320.0,111310.0,0.19690607]
[1757254017262,0.37940366,111320.0,111310.0,0.19690607]
[1757254020574,0.38831472,111320.0,111310.0,0.19690607]
[1757254057493,0.38831472,111320.0,111310.0,0.03584]
[1757254058995,0.38731472,111320.0,111310.0,0.03584]
[1757254059302,0.38831472,111320.0,111310.0,0.03584]
[1757254062595,0.37940366,111320.0,111310.0,0.03584]
[1757254064004,0.37940366,111320.0,111310.0,0.19690607]
[1757254074331,0.35727366,111320.0,111310.0,0.19690607]
[1757254074828,0.37975366,111320.0,111310.0,0.19690607]
[1757254076029,0.01928,111330.0,111320.0,0.0898245]
[1757254076326,0.01908,111330.0,111320.0,0.55557861]
[1757254076521,0.0002,111340.0,111330.0,0.03664]
[1757254076722,0.0002,111350.0,111340.0,0.03664]
[1757254077024,0.11680148,111360.0,111350.0,0.03664]
[1757254077222,0.42360603,111360.0,111350.0,0.14924557]
[1757254078537,0.40112603,111360.0,111350.0,0.03664]
[1757254079122,0.40112603,111360.0,111350.0,0.39906929]
[1757254079923,0.40112603,111360.0,111350.0,0.28664]
[1757254080922,0.40112603,111360.0,111350.0,0.14905524]
[1757254080923,0.42360603,111360.0,111350.0,0.14905524]
[1757254083036,0.42360603,111360.0,111350.0,0.03664]
[1757254083239,0.42360603,111360.0,111350.0,0.14890619]
[1757254085234,0.04360603,111360.0,111350.0,0.14890619]
[1757254086336,0.04360603,111360.0,111350.0,0.03664]
[1757254089136,0.02112603,111360.0,111350.0,0.03664]
[1757254089737,0.02112603,111360.0,111350.0,0.23870649]
[1757254090333,0.07064262,111370.0,111360.0,0.1245423]
[1757254090334,0.00039,111370.0,111360.0,0.1245423]
[1757254090540,0.00019,111370.0,111360.0,1.38108083]
[1757254090740,0.00019,111370.0,111360.0,1.63108083]
[1757254091042,0.0002,111380.0,111370.0,0.1245341]
[1757254091243,0.0002,111390.0,111380.0,0.03475]
[1757254091537,0.04268975,111400.0,111390.0,0.03475]
[1757254091841,0.02070975,111400.0,111390.0,0.03475]
[1757254092043,0.02070975,111400.0,111390.0,0.14684853]
[1757254092540,0.02070975,111400.0,111390.0,0.03475]
[1757254092740,0.02070975,111400.0,111390.0,0.37475]
[1757254093040,0.02070975,111400.0,111390.0,0.38475]
[1757254093235,0.07283962,111410.0,111390.0,0.38475]
[1757254093236,0.02198,111410.0,111400.0,0.03475]
[1757254093433,0.19178,111410.0,111400.0,0.03475]
[1757254093941,0.02178,111410.0,111400.0,0.03475]
[1757254097138,0.02178,111410.0,111400.0,0.03456]
[1757254098345,0.27178,111410.0,111400.0,0.03456]
[1757254098550,0.27943,111410.0,111400.0,0.02112]
[1757254098753,0.27178,111410.0,111400.0,0.03475]
[1757254100047,0.02178,111410.0,111400.0,0.03475]
[1757254101544,0.09001429,111420.0,111400.0,0.03475]
[1757254101752,0.09001429,111420.0,111410.0,0.03475]
[1757254101753,0.43179429,111420.0,111410.0,0.03475]
[1757254101947,0.43159429,111420.0,111410.0,0.03475]
[1757254103646,0.41521343,111420.0,111410.0,0.03475]
[1757254105356,0.34197,111420.0,111410.0,0.03475]
[1757254105855,0.35825466,111420.0,111410.0,0.03475]
[1757254110359,0.42866239,111420.0,111410.0,0.03475]
[1757254110658,0.41237773,111420.0,111410.0,0.03475]
[1757254114358,0.42888872,111420.0,111410.0,0.03475]
[1757254118163,0.68376872,111420.0,111400.0,0.03152599]
[1757254118359,0.43396872,111420.0,111400.0,0.35152599]
[1757254118758,0.43396872,111420.0,111410.0,0.02188]
[1757254118953,0.42888872,111420.0,111410.0,0.03468]
[1757254121059,0.42888872,111420.0,111410.0,0.11442272]
[1757254127172,0.42888872,111420.0,111410.0,0.03468]
[1757254128271,0.42888872,111420.0,111410.0,0.14677853]
[1757254128773,0.42888872,111420.0,111410.0,0.02188]
[1757254132773,0.42888872,111420.0,111410.0,0.03468]
[1757254134372,0.42888872,111420.0,111410.0,0.11500931]
[1757254137274,0.42888872,111420.0,111410.0,0.03468]
[1757254138871,0.42888872,111420.0,111410.0,0.02188]
[1757254139078,0.42888872,111420.0,111410.0,0.11255001]
[1757254139487,0.42888872,111420.0,111400.0,0.03152599]
[1757254139679,0.42908872,111420.0,111400.0,0.03152599]
[1757254139879,0.42908872,111420.0,111400.0,0.19255202]
[1757254140586,0.42908872,111420.0,111410.0,0.19295231]
[1757254140886,0.42908872,111420.0,111410.0,0.0803984]
[1757254140887,0.43653872,111420.0,111410.0,0.0803984]
[1757254143284,0.43653872,111420.0,111400.0,0.1443799]
[1757254143480,0.43673872,111420.0,111410.0,0.02136]
[1757254143683,0.43653872,111420.0,111410.0,0.02136]
[1757254144087,0.42888872,111420.0,111410.0,0.14784391]
[1757254145597,0.30764778,111420.0,111410.0,0.14784391]
[1757254145792,0.30764778,111420.0,111410.0,0.03529]
[1757254146687,0.30764778,111420.0,111410.0,0.14783486]
[1757254147693,0.30764778,111420.0,111410.0,0.39783486]
[1757254147694,0.29113679,111420.0,111410.0,0.39783486]
[1757254147892,0.29113679,111420.0,111410.0,0.28529]
[1757254149483,0.29113679,111420.0,111410.0,0.44631603]
[1757254149994,0.07040773,111420.0,111410.0,0.44631603]
[1757254150193,0.02910619,111430.0,111410.0,0.44631603]
[1757254150494,0.02910619,111430.0,111420.0,0.03529]
[1757254150495,0.42036619,111430.0,111420.0,0.03529]
[1757254150692,0.42016619,111430.0,111420.0,0.03529]
[1757254150993,0.42016619,111430.0,111410.0,0.17495603]
[1757254151189,0.42036619,111430.0,111420.0,0.02136]
[1757254151381,0.42016619,111430.0,111420.0,0.11246613]
[1757254151585,0.67016619,111430.0,111420.0,0.11246613]
[1757254152780,0.67016619,111430.0,111420.0,0.13382613]
[1757254152994,0.74133565,111430.0,111420.0,0.13382613]
[1757254153796,0.74133565,111430.0,111420.0,0.26382613]
[1757254153991,0.74133565,111430.0,111420.0,0.27775613]
[1757254154191,0.74133565,111430.0,111420.0,0.14775613]
[1757254154395,0.74133565,111430.0,111420.0,0.11246613]
[1757254154691,0.49133565,111430.0,111420.0,0.13382613]
[1757254155593,0.49133565,111430.0,111420.0,0.14775613]
[1757254161598,0.49133565,111430.0,111420.0,0.39775613]
[1757254161794,0.07116946,111430.0,111420.0,0.28529]
[1757254161997,0.0002,111440.0,111430.0,0.03529]
[1757254162301,0.33,111440.0,111430.0,0.03529]
[1757254162502,0.40174443,111440.0,111430.0,0.14769432]
[1757254163604,0.42300443,111440.0,111430.0,0.14769432]
[1757254167503,0.42300443,111440.0,111430.0,0.16557198]
[1757254168205,0.40174443,111440.0,111430.0,0.16557198]
[1757254168396,0.18174443,111440.0,111430.0,0.16557198]
[1757254168592,0.0012,111450.0,111440.0,0.01393]
[1757254168801,0.001,111450.0,111440.0,0.4950187]
[1757254169304,0.0002,111460.0,111450.0,0.1250106]
[1757254169500,0.00039,111470.0,111460.0,0.03529]
[1757254169700,0.00019,111470.0,111460.0,0.14736485]
[1757254169897,0.02145,111470.0,111460.0,0.14736485]
[1757254170306,0.2791,111470.0,111460.0,0.20606223]
[1757254170499,0.2791,111470.0,111460.0,0.09398738]
[1757254170896,0.2791,111470.0,111460.0,0.08002048]
[1757254171101,1.09602,111470.0,111460.0,0.08002048]
[1757254172104,0.0294,111460.0,111450.0,0.08015532]
[1757254173206,0.02175,111460.0,111450.0,0.11479532]
[1757254174607,0.02175,111460.0,111450.0,0.00013484]
[1757254175807,0.27175,111460.0,111450.0,0.08015532]
[1757254176013,0.27175,111460.0,111450.0,0.00013484]
[1757254178102,0.27175,111460.0,111450.0,0.03477484]
[1757254179313,0.02175,111460.0,111450.0,0.03477484]
[1757254180211,0.02214,111470.0,111460.0,0.03464]
[1757254180405,0.02194,111470.0,111460.0,0.03464]
[1757254181715,0.02194,111470.0,111460.0,0.28464]
[1757254184515,0.02194,111470.0,111460.0,0.03464]
[1757254184716,0.02194,111470.0,111450.0,0.09357532]
[1757254184916,0.02979,111470.0,111450.0,0.09357532]
[1757254185216,0.02214,111470.0,111460.0,0.02122]
[1757254185408,0.02194,111470.0,111460.0,0.03464]
[1757254186708,0.02194,111470.0,111460.0,0.11466048]
[1757254188417,0.02194,111470.0,111460.0,0.36466048]
[1757254189118,0.00019,111470.0,111460.0,0.36466048]
[1757254190219,0.00019,111470.0,111460.0,0.39671485]
[1757254196926,0.02194,111470.0,111460.0,0.14671485]
[1757254197623,0.02194,111470.0,111460.0,0.03464]
[1757254199022,0.00765,111460.0,111450.0,0.00013484]
[1757254199226,0.0294,111460.0,111450.0,0.11225851]
[1757254199624,0.2794,111460.0,111450.0,0.08024848]
[1757254200421,0.29744548,111460.0,111450.0,0.08024848]
[1757254200623,0.29744548,111460.0,111450.0,0.00013484]
[1757254202230,1.11876548,111460.0,111450.0,0.00013484]
[1757254202431,0.29744548,111460.0,111450.0,0.00013484]
[1757254202727,0.03979548,111460.0,111450.0,0.03459484]
[1757254203431,0.03979548,111460.0,111450.0,0.11470848]
[1757254204026,0.28979548,111460.0,111450.0,0.11470848]
[1757254204226,0.28979548,111460.0,111450.0,0.11454848]
[1757254204529,0.28979548,111460.0,111450.0,0.03443484]
[1757254204928,0.03055,111450.0,111440.0,0.08011364]
[1757254206328,0.02288,111450.0,111440.0,0.10187364]
[1757254206529,0.02288,111450.0,111440.0,0.11457364]
[1757254207435,0.27288,111450.0,111440.0,0.05890364]
[1757254207635,2.4926,111450.0,111420.0,0.05645367]
[1757254207934,2.21992,111450.0,111400.0,0.03105341]
[1757254208236,0.0002,111440.0,111400.0,0.03105341]
[1757254208536,0.79296,111430.0,111410.0,0.0127]
[1757254208837,0.79296,111430.0,111410.0,0.03446]
[1757254209232,0.0002,111430.0,111410.0,0.03446]
[1757254209536,0.82276,111430.0,111420.0,0.0127]
[1757254209739,0.8226,111430.0,111420.0,0.0127]
[1757254211434,0.01870776,111440.0,111420.0,0.0127]
[1757254211736,0.82256,111430.0,111420.0,0.0127]
[1757254212141,0.82356,111430.0,111420.0,0.0127]
[1757254212441,0.82356,111430.0,111410.0,0.03446]
[1757254212641,0.8224,111420.0,111410.0,0.03446]
[1757254212841,0.89532754,111420.0,111410.0,0.03446]
[1757254213553,0.89532754,111420.0,111410.0,0.0127]
[1757254214245,0.92107329,111420.0,111410.0,0.0127]
[1757254214845,0.07292754,111420.0,111410.0,0.03446]
[1757254215145,0.496,111420.0,111410.0,0.03446]
[1757254215345,0.496,111420.0,111410.0,0.0127]
[1757254215541,0.02484179,111430.0,111410.0,0.0127]
[1757254215745,0.02484179,111430.0,111410.0,0.03446]
[1757254215746,0.82336,111420.0,111410.0,0.03446]
[1757254216046,0.82328,111420.0,111410.0,0.03546]
[1757254216247,0.001,111420.0,111410.0,0.03546]
[1757254216945,0.0022,111430.0,111420.0,0.03446]
[1757254217136,0.002,111430.0,111420.0,0.03446]
[1757254218047,0.002,111430.0,111420.0,0.28446]
[1757254218248,0.002,111430.0,111420.0,0.3643232]
[1757254219148,0.84406776,111440.0,111430.0,0.03446]
[1757254219343,0.84399776,111440.0,111430.0,0.03446]
[1757254219743,0.84399776,111440.0,111420.0,0.01262]
[1757254220042,0.002,111430.0,111420.0,0.0798632]
[1757254220248,0.00213,111430.0,111410.0,0.0925632]
[1757254220452,0.82621,111420.0,111410.0,0.0925632]
[1757254221048,0.82621,111420.0,111410.0,0.1143232]
[1757254221244,0.82621,111420.0,111410.0,0.0798632]
[1757254221451,0.82621,111420.0,111400.0,0.11091661]
[1757254221643,0.82641,111420.0,111400.0,0.11091661]
[1757254221844,0.82641,111420.0,111400.0,0.03105341]
[1757254222146,0.82641,111420.0,111400.0,0.01835341]
[1757254222345,0.82641,111420.0,111390.0,0.0925632]
[1757254222548,0.82641,111420.0,111390.0,0.0127]
[1757254222748,0.82641,111420.0,111390.0,0.0925632]
[1757254222945,0.82641,111420.0,111400.0,0.001]
[1757254223146,0.99641,111420.0,111400.0,0.001]
[1757254223347,0.25,111410.0,111400.0,0.00092]
[1757254223552,0.61,111410.0,111400.0,0.00092]
[1757254223741,0.61,111410.0,111390.0,0.001]
[1757254223942,0.0502,111410.0,111390.0,0.0137]
[1757254224349,0.34656,111400.0,111390.0,0.0137]
[1757254224545,0.01826206,111410.0,111390.0,0.03546]
[1757254224752,0.3168,111400.0,111390.0,0.03546]
[1757254225153,0.3168,111400.0,111390.0,0.001]
[1757254225753,0.3168,111400.0,111380.0,0.03446]
[1757254225948,0.317,111400.0,111390.0,0.0127]
[1757254226145,0.3168,111400.0,111390.0,0.03446]
[1757254226856,0.45724,111400.0,111390.0,0.03446]
[1757254228256,0.002,111400.0,111390.0,0.03446]
[1757254228653,0.002,111400.0,111390.0,0.28446]
[1757254229247,0.002,111400.0,111390.0,0.0127]
[1757254229558,0.002,111400.0,111380.0,0.1143232]
[1757254229856,0.0022,111400.0,111380.0,0.03446]
[1757254230256,0.00233484,111400.0,111390.0,0.001]
[1757254230452,0.00213484,111400.0,111390.0,0.001]
[1757254230656,0.00113484,111400.0,111390.0,0.001]
[1757254231058,0.00113484,111400.0,111380.0,0.03446]
[1757254231358,0.00133484,111400.0,111380.0,0.0127]
[1757254231654,0.00333484,111400.0,111370.0,0.1143232]
[1757254233054,0.00333484,111400.0,111370.0,0.0127]
[1757254233255,2.00397484,111400.0,111360.0,0.033367]
[1757254233456,0.0002,111390.0,111360.0,0.033367]
[1757254233656,0.82772,111380.0,111360.0,0.033367]
[1757254233855,0.82792,111380.0,111360.0,0.033367]
[1757254234057,0.82792,111380.0,111360.0,0.055457]
[1757254234361,6e-05,111370.0,111360.0,0.055217]
[1757254234656,6e-05,111370.0,111350.0,0.0925632]
[1757254234957,0.00026,111370.0,111350.0,0.0127]
[1757254237058,0.8277,111360.0,111350.0,0.0127]
[1757254237655,0.00038,111360.0,111350.0,0.0127]
[1757254238051,0.02604458,111360.0,111350.0,0.0127]
[1757254238665,0.02604458,111360.0,111350.0,0.0137]
[1757254239160,0.84564458,111360.0,111350.0,0.0137]
[1757254239361,0.02604458,111360.0,111350.0,0.0137]
[1757254239763,0.09937775,111360.0,111350.0,0.0137]
[1757254243664,0.09937775,111360.0,111350.0,0.03579]
[1757254246770,0.92637775,111360.0,111350.0,0.03579]
[1757254247070,0.92637775,111360.0,111350.0,0.0137]
[1757254247672,0.09937775,111360.0,111350.0,0.0137]
[1757254247976,0.92617775,111360.0,111350.0,0.03579]
[1757254249167,0.07371317,111360.0,111350.0,0.28571]